bitfinex/quotes_SOLUSD_20250919
["timestamp","ask_amount","ask_price","bid_price","bid_amount"]
[1758299900394,34.01777317,238.41,238.4,33.2]
[1758299900999,34.01777317,238.41,238.4,0.66]
[1758299901305,34.01777317,238.41,238.4,33.2]
[1758299901899,36.31778911,238.41,238.4,32.54]
[1758299902099,36.31778911,238.41,238.4,33.2]
[1758299902704,34.01777317,238.41,238.4,33.2]
[1758299903190,34.01777317,238.41,238.4,32.54]
[1758299903400,36.31778911,238.41,238.38,81.66]
[1758299903584,2.81777317,238.4,238.39,32.54]
[1758299903788,5.11778911,238.4,238.39,32.54]
[1758299904998,5.11778911,238.4,238.39,33.2]
[1758299905297,2.81777317,238.4,238.39,49.09560995]
[1758299905477,2.81777317,238.43,238.4,80.8]
[1758299905673,2.81777317,238.42,238.41,33.22]
[1758299909187,2.81777317,238.42,238.41,114.02]
[1758299914685,2.81777317,238.42,238.41,129.91560995]
[1758299914903,2.81777317,238.43,238.42,13.59559401]
[1758299915116,16.8717011,238.44,238.43,91.57782084]
[1758299915418,16.8717011,238.44,238.43,255.27782084]
[1758299915716,16.8717011,238.44,238.43,258.25783678]
[1758299918800,2.30001594,238.54,238.44,13.59559401]
[1758299919000,31.2,238.53,238.48,13.59559401]
[1758299919206,31.2,238.53,238.49,33.18]
[1758299919404,2.30001594,238.54,238.49,111.16222683]
[1758299919613,0.68,238.56,238.5,0.68]
[1758299919614,2.30001594,238.56,238.5,0.68]
[1758299919826,0.68,238.58,238.51,32.48]
[1758299920132,1.47053232,238.56,238.51,111.14222683]
[1758299920309,1.47053232,238.56,238.52,0.68]
[1758299920496,32.67053232,238.57,238.53,32.48]
[1758299920693,0.1,238.59,238.54,0.68]
[1758299921010,1.57053232,238.59,238.55,33.16]
[1758299921212,1.47053232,238.58,238.55,32.48]
[1758299921597,1.47053232,238.58,238.55,33.16]
[1758299922018,1.57053232,238.59,238.55,33.16]
[1758299922403,1.57053232,238.59,238.56,0.68]
[1758299922731,1.57053232,238.59,238.57,32.5]
[1758299923602,1.47053232,238.58,238.57,32.5]
[1758299924830,1.47053232,238.58,238.57,32.46]
[1758299927117,32.67053232,238.58,238.57,110.44222683]
[1758299927425,35.48275427,238.58,238.57,110.44222683]
[1758299928436,2.81222195,238.58,238.57,110.44222683]
[1758299928728,1.57053232,238.59,238.57,111.12222683]
[1758299928904,4.38275427,238.59,238.57,111.12222683]
[1758299929104,2.91222195,238.59,238.57,111.12222683]
[1758299929926,34.11222195,238.59,238.57,110.44222683]
[1758299930134,2.81222195,238.58,238.57,110.44222683]
[1758299930332,1.47053232,238.58,238.57,110.44222683]
[1758299930507,2.15053232,238.58,238.57,77.98222683]
[1758299930711,20.63002875,238.58,238.55,77.98222683]
[1758299931016,7.3526616,238.56,238.55,77.98222683]
[1758299931211,10.84488355,238.56,238.55,77.98222683]
[1758299932522,23.4422507,238.56,238.55,77.98222683]
[1758299933142,17.56012142,238.56,238.55,77.98222683]
[1758299936031,31.2,238.54,238.53,110.44222683]
[1758299936342,35.48275427,238.54,238.53,110.44222683]
[1758299937131,35.48275427,238.54,238.53,77.98222683]
[1758299937331,35.48275427,238.54,238.53,110.42222683]
[1758299937842,4.28275427,238.54,238.53,110.42222683]
[1758299938054,32.67053232,238.54,238.53,110.42222683]
[1758299938256,35.48275427,238.54,238.53,110.42222683]
[1758299938948,35.48275427,238.54,238.53,111.08222683]
[1758299939253,2.81222195,238.54,238.53,111.08222683]
[1758299939451,1.47053232,238.54,238.53,111.08222683]
[1758299939852,4.28275427,238.54,238.53,111.08222683]
[1758299940154,2.81222195,238.54,238.53,111.08222683]
[1758299941029,1.47053232,238.56,238.53,111.08222683]
[1758299941259,1.47053232,238.56,238.54,0.66]
[1758299941445,1.47053232,238.56,238.55,32.44]
[1758299941646,4.28275427,238.57,238.55,33.1]
[1758299941977,4.28275427,238.57,238.56,33.1]
[1758299942260,1.47053232,238.57,238.56,33.1]
[1758299942460,1.47053232,238.57,238.56,32.44]
[1758299942461,2.81222195,238.57,238.56,32.44]
[1758299942668,4.28275427,238.57,238.56,32.44]
[1758299943550,31.2,238.56,238.53,77.98222683]
[1758299943751,4.94275427,238.55,238.54,32.42]
[1758299944559,4.28275427,238.55,238.54,32.42]
[1758299944757,32.67053232,238.55,238.54,33.08]
[1758299944939,35.48275427,238.55,238.54,32.42]
[1758299945444,35.48275427,238.55,238.54,33.08]
[1758299945445,34.01222195,238.55,238.54,33.08]
[1758299947442,2.81222195,238.55,238.54,33.08]
[1758299947661,1.57053232,238.59,238.54,33.08]
[1758299947662,31.2,238.57,238.54,111.06222683]
[1758299947993,2.81222195,238.56,238.54,110.40222683]
[1758299948151,1.47053232,238.55,238.54,77.98222683]
[1758299949359,32.67053232,238.55,238.54,77.98222683]
[1758299949566,35.48275427,238.55,238.54,77.98222683]
[1758299949769,4.28275427,238.55,238.54,77.98222683]
[1758299949970,1.47053232,238.55,238.54,77.98222683]
[1758299950144,4.28275427,238.55,238.54,77.98222683]
[1758299950344,32.67053232,238.55,238.54,77.98222683]
[1758299950546,35.48275427,238.55,238.54,78.64222683]
[1758299950768,34.01222195,238.55,238.54,78.64222683]
[1758299950943,2.81222195,238.55,238.54,78.64222683]
[1758299951150,1.47053232,238.56,238.54,77.98222683]
[1758299951373,4.28275427,238.56,238.55,32.44]
[1758299951898,35.48275427,238.56,238.55,32.44]
[1758299953994,35.48773285,238.56,238.55,32.44]
[1758299956695,35.48773285,238.56,238.55,77.98222683]
[1758299956896,35.48773285,238.56,238.55,110.40222683]
[1758299958100,35.48773285,238.56,238.55,77.98222683]
[1758299958307,36.14773285,238.56,238.54,32.42]
[1758299958508,34.01720053,238.55,238.54,32.42]
[1758299958685,31.2,238.54,238.52,77.98222683]
[1758299958867,4.28773285,238.53,238.52,110.40222683]
[1758299960674,4.28773285,238.53,238.43,91.57782084]
[1758299960875,1.47053232,238.48,238.44,33.08]
[1758299961099,1.47053232,238.46,238.45,0.66]
[1758299961275,4.28773285,238.46,238.45,33.08]
[1758299965986,2.81720053,238.46,238.45,33.08]
[1758299966182,1.47053232,238.47,238.45,33.08]
[1758299966387,2.81720053,238.46,238.45,32.42]
[1758299966992,2.81720053,238.46,238.45,33.08]
[1758299969415,4.28773285,238.46,238.45,0.66]
[1758299969718,4.28773285,238.46,238.45,32.4]
[1758299969927,35.48773285,238.46,238.45,32.4]
[1758299970922,4.28773285,238.46,238.45,32.4]
[1758299971502,35.48773285,238.46,238.45,110.38222683]
[1758299972799,2.81720053,238.46,238.45,110.38222683]
[1758299973003,4.28773285,238.46,238.45,111.04222683]
[1758299973529,4.28773285,238.46,238.45,78.64222683]
[1758299973706,4.28773285,238.46,238.45,111.04222683]
[1758299974513,4.28773285,238.46,238.45,110.38222683]
[1758299975104,4.97773285,238.46,238.45,77.98222683]
[1758299975300,36.17773285,238.46,238.39,0.66]
[1758299975633,1.47053232,238.4,238.39,78.64222683]
[1758299975827,1.47053232,238.4,238.39,111.04222683]
[1758299977016,1.47053232,238.4,238.39,111.02222683]
[1758299979121,1.47053232,238.43,238.39,111.02222683]
[1758299979304,1.47053232,238.43,238.4,0.66]
[1758299979502,1.47053232,238.43,238.41,32.38]
[1758299979703,32.67053232,238.43,238.42,0.66]
[1758299979931,4.28773285,238.43,238.42,0.66]
[1758299980111,1.47053232,238.43,238.42,0.66]
[1758299980314,2.81720053,238.44,238.42,0.66]
[1758299980499,2.81720053,238.44,238.43,33.04]
[1758299980706,4.28773285,238.44,238.43,33.04]
[1758299981227,1.47053232,238.44,238.43,32.38]
[1758299981399,1.47053232,238.44,238.43,33.04]
[1758299981800,33.50009356,238.44,238.43,32.38]
[1758299982104,36.31729409,238.44,238.43,32.38]
[1758299983025,37.00729409,238.44,238.43,32.38]
[1758299983605,36.31729409,238.44,238.43,32.38]
[1758299984205,36.31729409,238.44,238.43,33.04]
[1758299984409,5.11729409,238.44,238.43,33.04]
[1758299984615,2.30009356,238.44,238.43,33.04]
[1758299985130,33.50009356,238.44,238.43,33.04]
[1758299985318,36.31729409,238.44,238.43,33.04]
[1758299986418,36.31729409,238.44,238.43,111.02222683]
[1758299986617,2.81720053,238.44,238.43,111.02222683]
[1758299986827,2.30009356,238.45,238.43,111.02222683]
[1758299987035,2.30009356,238.45,238.44,0.66]
[1758299989510,2.30009356,238.45,238.43,77.98222683]
[1758299989709,2.30009356,238.45,238.44,32.38]
[1758299990010,5.11729409,238.46,238.44,33.04]
[1758299990210,5.11729409,238.49,238.45,0.66]
[1758299990421,33.50009356,238.47,238.46,32.38]
[1758299990704,5.11729409,238.47,238.46,32.38]
[1758299990908,2.30009356,238.47,238.46,32.38]
[1758299991335,2.30009356,238.47,238.44,78.64222683]
[1758299991510,33.50009356,238.46,238.45,33.04]
[1758299991712,36.31729409,238.46,238.45,33.04]
[1758299992017,36.31729409,238.46,238.45,0.66]
[1758299992211,36.31729409,238.46,238.45,33.04]
[1758299992835,36.31729409,238.46,238.45,0.66]
[1758299993136,36.31729409,238.46,238.45,33.04]
[1758299993735,2.81720053,238.46,238.45,33.04]
[1758299993934,2.30009356,238.47,238.45,33.04]
[1758299994113,31.2,238.46,238.45,32.38]
[1758299994413,34.01720053,238.46,238.45,32.38]
[1758299994842,34.01720053,238.46,238.45,33.04]
[1758299995015,2.81720053,238.46,238.45,33.04]
[1758299995215,33.50009356,238.47,238.45,111.02222683]
[1758299995416,2.81720053,238.46,238.45,110.36222683]
[1758299996032,2.81720053,238.46,238.45,111.02222683]
[1758300000949,2.81720053,238.46,238.45,113.32232039]
[1758300001138,31.2,238.49,238.45,113.32232039]
[1758300001321,2.81720053,238.48,238.46,0.69]
[1758300001524,2.81720053,238.5,238.47,45.97559401]
[1758300001723,2.81720053,238.49,238.48,16.58568757]
[1758300002056,5.11729409,238.55,238.49,13.59559401]
[1758300002229,31.2,238.52,238.5,33.07]
[1758300002434,2.81720053,238.51,238.5,32.38]
[1758300003024,2.81720053,238.51,238.5,33.07]
[1758300003923,2.81720053,238.51,238.5,46.66559401]
[1758300004548,2.82192075,238.51,238.5,46.66559401]
[1758300005452,2.82192075,238.53,238.51,13.59559401]
[1758300005625,2.82192075,238.52,238.49,2.30009356]
[1758300005825,2.82192075,238.51,238.5,45.97559401]
[1758300006021,31.2,238.54,238.5,45.97559401]
[1758300006022,2.82192075,238.53,238.5,45.97559401]
[1758300006250,2.82192075,238.52,238.5,46.66559401]
[1758300006451,2.30009356,238.55,238.5,46.66559401]
[1758300006452,2.82192075,238.51,238.5,46.66559401]
[1758300006627,2.82192075,238.54,238.5,46.66559401]
[1758300006831,2.82192075,238.53,238.51,0.69]
[1758300007030,2.30009356,238.55,238.52,32.38]
[1758300007234,31.2,238.53,238.52,32.38]
[1758300007464,34.02088017,238.53,238.52,33.07]
[1758300008756,2.82088017,238.53,238.52,33.07]
[1758300009842,2.82088017,238.55,238.52,33.07]
[1758300010160,2.82088017,238.54,238.53,0.69]
[1758300011135,0.1,238.59,238.54,13.59559401]
[1758300011136,2.82088017,238.56,238.54,13.59559401]
[1758300011347,2.82088017,238.58,238.55,33.05]
[1758300011545,34.02088017,238.58,238.56,0.69]
[1758300011759,2.81698646,238.57,238.56,91.57782084]
[1758300011973,0.1,238.59,238.56,110.34222683]
[1758300012176,2.91677323,238.59,238.56,110.34222683]
[1758300012471,2.91677323,238.59,238.57,0.69]
[1758300012672,2.91677323,238.59,238.58,33.05]
[1758300013873,2.91677323,238.59,238.58,32.36]
[1758300014649,2.91677323,238.59,238.58,33.05]
[1758300015058,2.91677323,238.59,238.58,111.03222683]
[1758300015871,0.1,238.59,238.58,126.9279144]
[1758300018754,31.2,238.64,238.63,77.88222683]
[1758300018978,34.00935621,238.64,238.63,110.93222683]
[1758300019383,2.80935621,238.64,238.63,110.93222683]
[1758300019591,0.2,238.65,238.63,110.93222683]
[1758300019772,0.2,238.65,238.64,0.69]
[1758300020662,0.2,238.65,238.64,14.28559401]
[1758300024390,0.2,238.65,238.64,46.64559401]
[1758300026486,3.19009356,238.65,238.64,32.34]
[1758300026665,0.89,238.65,238.64,32.34]
[1758300026866,3.19009356,238.65,238.64,32.34]
[1758300027398,3.19009356,238.65,238.63,209.08222683]
[1758300027572,3.19009356,238.65,238.64,32.34]
[1758300027988,2.50009356,238.65,238.64,110.22222683]
[1758300028293,3.19009356,238.65,238.64,110.22222683]
[1758300028690,0.89,238.65,238.64,110.22222683]
[1758300029295,32.09,238.65,238.64,110.22222683]
[1758300029468,3.69203071,238.65,238.64,77.88222683]
[1758300029673,0.89,238.65,238.64,110.22222683]
[1758300031091,3.19009356,238.65,238.64,110.22222683]
[1758300032893,34.39009356,238.65,238.64,110.22222683]
[1758300033082,37.19212427,238.65,238.64,110.22222683]
[1758300035092,49.78367534,238.65,238.64,110.22222683]
[1758300035681,47.48358178,238.65,238.55,78.60222683]
[1758300035997,2.30009356,238.59,238.56,33.06]
[1758300036202,31.2,238.57,238.56,110.22222683]
[1758300036399,2.30009356,238.61,238.56,110.22222683]
[1758300036702,2.30009356,238.61,238.57,0.72]
[1758300036996,31.2,238.6,238.58,32.34]
[1758300037199,31.2,238.6,238.59,0.72]
[1758300037377,34.00695046,238.6,238.59,0.72]
[1758300039994,34.00695046,238.6,238.59,78.60222683]
[1758300042999,34.00695046,238.6,238.59,77.88222683]
[1758300043390,34.00695046,238.6,238.59,78.60222683]
[1758300043791,2.80695046,238.6,238.59,78.60222683]
[1758300044085,1.46976696,238.62,238.59,78.60222683]
[1758300044294,2.80695046,238.64,238.6,33.06]
[1758300044588,1.46976696,238.62,238.6,110.94222683]
[1758300045000,1.46976696,238.62,238.61,33.06]
[1758300045497,1.46976696,238.62,238.61,32.34]
[1758300045991,4.27671742,238.64,238.61,33.06]
[1758300046195,2.80695046,238.64,238.62,0.72]
[1758300046398,4.47671742,238.65,238.63,32.34]
[1758300047282,2.80695046,238.64,238.63,32.34]
[1758300048802,2.80695046,238.64,238.63,110.22222683]
[1758300050092,4.27671742,238.64,238.63,110.22222683]
[1758300050486,4.27671742,238.64,238.63,110.94222683]
[1758300050695,2.80695046,238.64,238.63,110.94222683]
[1758300050988,3.00695046,238.65,238.63,110.94222683]
[1758300051206,0.2,238.65,238.64,0.72]
[1758300051400,3.00695046,238.65,238.64,0.72]
[1758300052098,0.2,238.65,238.64,0.72]
[1758300052297,3.00695046,238.65,238.64,0.72]
[1758300052500,0.2,238.65,238.64,0.72]
[1758300052680,3.00695046,238.65,238.64,0.72]
[1758300052883,0.2,238.65,238.64,0.72]
[1758300053086,3.00695046,238.65,238.64,0.72]
[1758300053285,4.47671742,238.65,238.64,32.34]
[1758300054098,4.47671742,238.65,238.64,33.06]
[1758300055293,3.00695046,238.65,238.64,33.06]
[1758300055805,3.00695046,238.65,238.64,46.65559401]
[1758300058810,0.2,238.65,238.64,46.65559401]
[1758300059224,3.00695046,238.65,238.64,46.65559401]
[1758300059522,2.80695046,238.68,238.65,77.68222683]
[1758300059697,2.80695046,238.67,238.66,33.06]
[1758300060819,2.80695046,238.67,238.66,14.31559401]
[1758300060995,2.80695046,238.67,238.66,46.65559401]
[1758300062727,0.3,238.69,238.67,13.59559401]
[1758300062891,0.3,238.69,238.68,47.82433197]
[1758300063091,0.3,238.69,238.68,48.54433197]
[1758300065401,0.3,238.69,238.68,16.20433197]
[1758300065607,0.3,238.69,238.68,48.52433197]
[1758300066228,0.3,238.69,238.68,16.20433197]
[1758300066520,2.80695046,238.74,238.71,13.59559401]
[1758300066819,2.80695046,238.74,238.72,32.32]
[1758300067611,2.80695046,238.74,238.72,33.04]
[1758300070808,2.80695046,238.74,238.73,0.72]
[1758300071705,2.80695046,238.74,238.72,32.32]
[1758300072023,2.80695046,238.74,238.72,33.04]
[1758300072319,31.2,238.75,238.72,33.04]
[1758300072511,1.46976696,238.76,238.72,110.42222683]
[1758300072838,4.27984893,238.76,238.72,78.10222683]
[1758300073125,2.15976696,238.75,238.72,77.38222683]
[1758300073311,2.15976696,238.75,238.73,32.32]
[1758300073917,2.15976696,238.75,238.72,77.38222683]
[1758300074133,1.46976696,238.74,238.73,32.32]
[1758300075806,1.46976696,238.76,238.73,33.04]
[1758300076006,1.56976696,238.77,238.73,32.32]
[1758300076319,0.1,238.77,238.74,0.72]
[1758300076505,0.1,238.77,238.73,32.32]
[1758300076506,31.2,238.76,238.75,32.32]
[1758300076699,34.01008197,238.76,238.75,33.04]
[1758300077027,34.01008197,238.76,238.75,32.32]
[1758300078330,34.01008197,238.76,238.75,109.70222683]
[1758300078631,31.3,238.77,238.75,110.42222683]
[1758300078803,31.3,238.77,238.76,0.72]
[1758300079009,34.10739761,238.77,238.76,78.10222683]
[1758300079233,2.90739761,238.77,238.76,77.38222683]
[1758300079403,2.90739761,238.77,238.76,109.70222683]
[1758300080310,0.1,238.77,238.76,109.70222683]
[1758300080510,2.90739761,238.77,238.76,109.70222683]
[1758300080928,2.90739761,238.77,238.76,77.38222683]
[1758300081108,0.1,238.77,238.76,109.70222683]
[1758300081304,0.1,238.77,238.76,110.42222683]
[1758300081529,0.1,238.77,238.76,109.70222683]
[1758300081830,2.90739761,238.77,238.76,109.70222683]
[1758300084418,5.06716457,238.77,238.76,77.38222683]
[1758300084809,5.06716457,238.77,238.76,32.3]
[1758300085132,5.06716457,238.77,238.75,32.3]
[1758300085305,31.2,238.75,238.74,32.3]
[1758300085510,31.2,238.74,238.67,0.72]
[1758300085711,1.46976696,238.71,238.68,32.3]
[1758300086414,1.46976696,238.71,238.68,33.02]
[1758300087643,2.80739761,238.72,238.68,0.72]
[1758300087644,32.66976696,238.7,238.68,0.72]
[1758300087850,32.66976696,238.7,238.69,32.3]
[1758300088031,35.478938,238.7,238.69,32.3]
[1758300088239,2.80917104,238.7,238.69,33.02]
[1758300088537,1.46976696,238.73,238.69,33.02]
[1758300088741,4.278938,238.73,238.7,0.72]
[1758300088937,4.278938,238.73,238.71,33.02]
[1758300089258,1.46976696,238.72,238.68,0.72]
[1758300089442,1.46976696,238.71,238.69,32.3]
[1758300089754,1.46976696,238.71,238.69,33.02]
[1758300090339,1.46976696,238.71,238.69,110.40222683]
[1758300090543,2.80917104,238.73,238.7,0.72]
[1758300090727,2.80917104,238.74,238.7,0.72]
[1758300090922,1.46976696,238.74,238.7,0.72]
[1758300091126,1.46976696,238.72,238.7,0.72]
[1758300091549,1.46976696,238.73,238.71,0.72]
[1758300091771,1.46976696,238.73,238.72,32.3]
[1758300091930,1.46976696,238.73,238.72,109.68222683]
[1758300092132,1.46976696,238.73,238.72,110.40222683]
[1758300093024,4.278938,238.74,238.72,110.40222683]
[1758300093229,1.46976696,238.74,238.73,32.3]
[1758300093450,4.278938,238.74,238.73,32.3]
[1758300093853,4.278938,238.74,238.73,33.02]
[1758300094040,1.46976696,238.74,238.73,33.02]
[1758300094228,4.278938,238.74,238.73,33.02]
[1758300094433,2.80917104,238.74,238.73,33.02]
[1758300094766,1.46976696,238.75,238.73,33.02]
[1758300094767,4.278938,238.75,238.73,33.02]
[1758300094948,2.80917104,238.75,238.73,33.02]
[1758300095148,1.46976696,238.74,238.73,33.02]
[1758300095456,4.278938,238.74,238.73,33.02]
[1758300095655,1.46976696,238.74,238.73,33.02]
[1758300095852,4.278938,238.74,238.72,77.38222683]
[1758300096054,4.958938,238.73,238.72,77.38222683]
[1758300096349,4.958938,238.73,238.72,109.68222683]
[1758300096764,4.278938,238.73,238.72,109.68222683]
[1758300097850,7.79063327,238.73,238.72,109.68222683]
[1758300098251,4.278938,238.73,238.72,109.68222683]
[1758300098660,2.80917104,238.73,238.72,110.40222683]
[1758300100273,34.00917104,238.73,238.72,110.40222683]
[1758300100470,2.80917104,238.73,238.72,110.40222683]
[1758300100849,2.80917104,238.73,238.72,123.99782084]
[1758300101662,2.80917104,238.76,238.72,123.99782084]
[1758300101839,2.80917104,238.75,238.73,0.72]
[1758300102082,31.3,238.77,238.74,32.3]
[1758300102415,2.81841255,238.76,238.75,0.72]
[1758300102717,2.81841255,238.76,238.75,32.3]
[1758300103211,2.81841255,238.76,238.75,110.40222683]
[1758300107109,2.81841255,238.76,238.75,33.02]
[1758300108122,2.81841255,238.76,238.75,32.3]
[1758300108295,6.33010782,238.76,238.75,32.3]
[1758300108496,31.2,238.73,238.69,0.72]
[1758300108698,31.2,238.73,238.7,33.02]
[1758300108699,2.29331322,238.71,238.7,33.02]
[1758300108911,5.11172577,238.71,238.7,33.02]
[1758300109715,2.81841255,238.71,238.7,33.02]
[1758300111293,2.81841255,238.71,238.7,32.3]
[1758300113023,2.81841255,238.71,238.68,0.72]
[1758300113194,2.29331322,238.73,238.7,32.3]
[1758300113401,34.02217169,238.72,238.7,32.3]
[1758300113718,34.02217169,238.72,238.7,33.02]
[1758300113719,2.82217169,238.71,238.7,33.02]
[1758300114225,2.82217169,238.71,238.7,32.3]
[1758300114597,2.82217169,238.71,238.7,33.02]
[1758300116124,2.82217169,238.71,238.7,0.72]
[1758300116328,2.82217169,238.71,238.7,33.02]
[1758300117622,31.2,238.68,238.66,0.7]
[1758300117923,2.82217169,238.67,238.63,13.59559401]
[1758300118111,2.82217169,238.67,238.62,2.29331322]
[1758300118313,2.82217169,238.66,238.64,32.3]
[1758300118514,2.82217169,238.67,238.65,0.7]
[1758300118713,2.82217169,238.66,238.64,32.3]
[1758300119023,2.82217169,238.67,238.64,32.3]
[1758300119227,2.82217169,238.66,238.65,0.7]
[1758300119426,31.2,238.68,238.66,0.7]
[1758300119427,2.82217169,238.67,238.66,0.7]
[1758300120805,2.82217169,238.67,238.66,16.58890723]
[1758300121130,3.52776557,238.72,238.67,13.59559401]
[1758300121131,2.82217169,238.71,238.67,13.59559401]
[1758300121331,31.2,238.72,238.68,33.0]
[1758300121332,2.82217169,238.7,238.68,33.0]
[1758300121506,2.82217169,238.69,238.68,45.89559401]
[1758300122215,2.82217169,238.69,238.68,46.59559401]
[1758300125917,2.82217169,238.71,238.68,49.30787823]
[1758300126120,3.52776557,238.76,238.71,13.59559401]
[1758300126419,2.82178809,238.75,238.72,33.0]
[1758300126627,2.82178809,238.74,238.73,0.7]
[1758300126828,2.82178809,238.74,238.73,33.0]
[1758300127129,2.82178809,238.74,238.73,32.3]
[1758300128421,2.82178809,238.74,238.73,33.0]
[1758300131740,2.82178809,238.74,238.73,32.98]
[1758300132248,2.82178809,238.74,238.73,46.57559401]
[1758300134434,2.82178809,238.76,238.74,13.59559401]
[1758300134646,2.82178809,238.75,238.74,13.59559401]
[1758300134847,2.82178809,238.75,238.74,45.87559401]
[1758300135335,2.82178809,238.75,238.74,46.57559401]
[1758300141734,2.82178809,238.75,238.74,14.29559401]
[1758300141932,2.82178809,238.75,238.74,46.57559401]
[1758300143291,2.82178809,238.75,238.74,49.28777294]
[1758300144336,2.82178809,238.76,238.74,48.86890723]
[1758300144536,0.1,238.77,238.76,13.59559401]
[1758300144753,2.92030777,238.77,238.76,45.87559401]
[1758300144962,2.92030777,238.77,238.76,48.86890723]
[1758300145277,0.1,238.77,238.76,48.86890723]
[1758300145434,0.1,238.77,238.76,49.28773785]
[1758300146726,0.1,238.77,238.76,53.47604409]
[1758300147152,0.1,238.77,238.76,51.18273087]
[1758300147352,0.1,238.77,238.76,53.47604409]
[1758300149275,0.1,238.77,238.76,55.15294685]
[1758300149777,0.1,238.77,238.76,21.19604409]
[1758300149960,0.1,238.77,238.76,53.47604409]
[1758300151056,0.1,238.77,238.76,55.15294685]
[1758300151678,0.1,238.77,238.76,22.87294685]
[1758300151976,0.1,238.77,238.76,55.43726999]
[1758300154763,0.1,238.77,238.76,55.41726999]
[1758300155278,0.1,238.77,238.76,16.39132739]
[1758300155463,0.1,238.77,238.76,53.45604409]
[1758300156277,0.1,238.77,238.76,53.74036723]
[1758300156870,0.1,238.77,238.76,55.41726999]
[1758300158564,0.1,238.78,238.77,0.28432314]
[1758300158779,0.1,238.78,238.77,16.89323037]
[1758300158986,0.1,238.78,238.77,14.31559401]
[1758300159160,0.1,238.78,238.77,48.86890723]
[1758300160387,0.1,238.78,238.77,16.60890723]
[1758300160586,0.1,238.78,238.77,53.05703806]
[1758300163894,0.1,238.78,238.77,50.76372484]
[1758300164085,0.1,238.78,238.77,53.05703806]
[1758300164868,0.1,238.78,238.77,50.76372484]
[1758300165161,0.1,238.78,238.77,53.05703806]
[1758300166174,0.1,238.78,238.77,19.97038126]
[1758300166379,0.1,238.78,238.77,52.23038126]
[1758300170190,0.78,238.78,238.77,13.59559401]
[1758300170390,1.56665642,238.85,238.83,79.22]
[1758300170391,1.46665642,238.84,238.83,79.22]
[1758300170597,1.56665642,238.85,238.83,111.48]
[1758300175894,1.56665642,238.85,238.83,79.22]
[1758300176197,1.46665642,238.84,238.83,79.22]
[1758300176396,1.46665642,238.84,238.83,79.04170211]
[1758300176701,1.46665642,238.84,238.83,111.25712763]
[1758300176702,32.66665642,238.84,238.83,111.25712763]
[1758300177198,1.46665642,238.84,238.83,78.99712763]
[1758300177499,32.66665642,238.84,238.83,111.25712763]
[1758300180708,31.2,238.84,238.83,111.25712763]
[1758300180886,1.56665642,238.85,238.83,111.25712763]
[1758300181700,0.1,238.85,238.83,111.25712763]
[1758300182085,31.3,238.85,238.83,111.25712763]
[1758300182280,31.3,238.85,238.83,111.94712763]
[1758300182608,0.1,238.85,238.83,111.94712763]
[1758300182999,31.3,238.85,238.83,111.94712763]
[1758300185314,1.46665642,238.84,238.83,111.25712763]
[1758300186905,1.46665642,238.84,238.83,111.94712763]
[1758300188117,0.1,238.85,238.83,111.94712763]
[1758300188332,1.46665642,238.84,238.83,111.94712763]
[1758300189121,3.62776557,238.85,238.83,111.94712763]
[1758300189293,3.62776557,238.85,238.84,0.69]
[1758300189692,0.1,238.85,238.84,0.69]
[1758300190522,1.56665642,238.85,238.84,0.69]
[1758300191118,0.1,238.85,238.84,78.99712763]
[1758300191320,1.56665642,238.85,238.84,111.23712763]
[1758300191896,1.56665642,238.85,238.84,111.92712763]
[1758300192825,0.1,238.85,238.84,111.92712763]
[1758300193004,1.56665642,238.85,238.84,78.99712763]
[1758300193198,32.76665642,238.85,238.84,111.23712763]
[1758300194930,36.29603862,238.85,238.84,111.23712763]
[1758300195119,32.76665642,238.85,238.84,111.23712763]
[1758300198633,1.56665642,238.85,238.84,111.23712763]
[1758300198936,0.1,238.85,238.84,111.23712763]
[1758300199921,0.1,238.85,238.84,111.92712763]
[1758300200125,0.1,238.85,238.84,125.52272164]
[1758300208518,0.1,238.85,238.84,93.28272164]